bitfinex/quotes_SOLUSD_20251206
["timestamp","ask_amount","ask_price","bid_price","bid_amount"]
[1765019688562,111.65,133.1,133.07,0.68]
[1765019688938,103.41,133.1,133.07,0.68]
[1765019689136,103.0,133.1,133.07,0.68]
[1765019689335,103.0,133.1,133.07,8.19484169]
[1765019689547,103.0,133.1,133.07,11.2308529]
[1765019689864,103.0,133.1,133.08,0.68]
[1765019702087,103.0,133.1,133.07,10.5508529]
[1765019702088,103.41,133.1,133.07,0.68]
[1765019702660,103.0,133.1,133.07,0.68]
[1765019703070,103.41,133.1,133.07,0.68]
[1765019710374,103.0,133.1,133.07,0.68]
[1765019713383,103.0,133.1,133.09,3.03601121]
[1765019713586,103.0,133.1,133.09,19.34487521]
[1765019713767,103.0,133.1,133.09,20.02487521]
[1765019714983,103.0,133.13,133.09,20.02487521]
[1765019715184,103.0,133.13,133.1,3.71601121]
[1765019715690,103.0,133.13,133.11,3.71601121]
[1765019715890,103.0,133.13,133.11,0.68]
[1765019716071,103.0,133.13,133.1,39.54610299]
[1765019716391,103.0,133.13,133.11,0.68]
[1765019716773,103.41,133.13,133.1,16.308864]
[1765019716978,103.41,133.13,133.1,16.988864]
[1765019717379,103.0,133.13,133.11,0.68]
[1765019736609,103.0,133.13,133.11,8.19256472]
[1765019742091,103.0,133.13,133.11,0.68]
[1765019742292,0.41,133.12,133.1,16.308864]
[1765019742602,0.41,133.12,133.09,0.71]
[1765019743600,0.41,133.12,133.09,8.2235789]
[1765019744202,5.15257012,133.12,133.09,8.2235789]
[1765019744500,0.41,133.12,133.09,8.2235789]
[1765019744682,0.41,133.11,133.08,12.96684356]
[1765019744885,0.41,133.11,133.08,8.22427344]
[1765019745490,0.41,133.11,133.08,0.71]
[1765019747006,8.65,133.11,133.08,0.71]
[1765019747537,16.16270072,133.11,133.08,0.71]
[1765019747812,38.72672614,133.11,133.08,0.71]
[1765019749316,43.46929626,133.11,133.08,0.71]
[1765019749513,5.15257012,133.1,133.06,32.77411278]
[1765019749693,5.15257012,133.1,133.07,0.71]
[1765019750024,27.71829278,133.1,133.07,0.71]
[1765019750189,22.97572266,133.1,133.07,0.71]
[1765019753397,30.48898477,133.1,133.07,0.71]
[1765019753720,133.48898477,133.1,133.07,0.71]
[1765019754704,0.41,133.09,133.06,24.53411278]
[1765019755100,138.23155489,133.1,133.07,0.71]
[1765019755408,137.82155489,133.1,133.07,0.71]
[1765019755609,138.23155489,133.1,133.07,0.71]
[1765019756928,115.66583223,133.1,133.07,0.71]
[1765019757600,103.0,133.09,133.06,16.308864]
[1765019757796,116.39257012,133.09,133.06,17.018864]
[1765019758801,115.98257012,133.09,133.07,0.71]
[1765019759502,116.39257012,133.09,133.06,17.018864]
[1765019760311,4.74257012,133.07,133.04,0.71]
[1765019760502,4.74257012,133.07,133.05,0.71]
[1765019760708,5.15257012,133.08,133.05,0.71]
[1765019761934,5.15257012,133.07,133.04,8.22651235]
[1765019762110,4.74257012,133.07,133.05,0.71]
[1765019762310,5.15257012,133.07,133.04,8.22651235]
[1765019764026,4.74257012,133.07,133.04,8.22651235]
[1765019764539,5.15257012,133.07,133.04,8.22651235]
[1765019765223,0.41,133.07,133.04,8.22651235]
[1765019766530,5.15257012,133.07,133.04,8.22651235]
[1765019767523,4.74257012,133.07,133.04,7.51651235]
[1765019767746,4.74257012,133.07,133.04,8.22651235]
[1765019767934,4.74257012,133.07,133.04,7.51651235]
[1765019768107,4.74257012,133.07,133.05,0.71]
[1765019769439,5.15257012,133.07,133.04,8.22651235]
[1765019769741,0.41,133.07,133.04,8.22651235]
[1765019770143,4.74257012,133.08,133.04,7.51651235]
[1765019770447,5.15257012,133.08,133.05,0.71]
[1765019774543,4.74257012,133.08,133.04,7.51651235]
[1765019774725,5.15257012,133.08,133.05,0.71]
[1765019775851,4.74257012,133.07,133.05,0.71]
[1765019779120,5.15257012,133.06,133.03,0.71]
[1765019779325,4.74257012,133.05,133.03,0.71]
[1765019779540,17.018864,133.05,133.03,0.71]
[1765019779739,5.15257012,133.06,133.03,0.71]
[1765019779927,4.74257012,133.06,133.03,0.71]
[1765019780131,13.18257012,133.06,133.03,0.71]
[1765019780936,8.44,133.06,133.03,8.22707166]
[1765019781143,118.75520693,133.07,133.03,12.96964178]
[1765019781448,123.49777705,133.07,133.04,0.71]
[1765019782118,115.25777705,133.07,133.04,0.71]
[1765019782320,123.49777705,133.07,133.04,0.71]
[1765019783055,115.25777705,133.07,133.04,0.71]
[1765019783258,123.49777705,133.07,133.04,0.71]
[1765019783560,119.16520693,133.07,133.04,0.71]
[1765019785154,123.90777705,133.07,133.04,0.71]
[1765019785458,146.47859298,133.07,133.04,0.71]
[1765019786060,4.74257012,133.06,133.04,0.71]
[1765019786282,12.25964178,133.06,133.04,0.71]
[1765019787658,19.77538076,133.06,133.04,0.71]
[1765019788153,15.03281064,133.06,133.04,0.71]
[1765019788356,15.03281064,133.06,133.04,5.45257012]
[1765019788557,15.03281064,133.06,133.04,0.71]
[1765019788736,15.03281064,133.06,133.05,0.71]
[1765019788936,7.51573898,133.06,133.05,0.71]
[1765019792862,7.51573898,133.06,133.02,12.26020998]
[1765019793040,7.51573898,133.06,133.04,0.71]
[1765019798856,15.03388225,133.06,133.04,0.71]
[1765019799162,7.51573898,133.06,133.04,0.71]
[1765019800177,15.03388225,133.06,133.04,0.71]
[1765019802971,15.44388225,133.06,133.03,0.71]
[1765019803263,18.48176134,133.06,133.03,0.71]
[1765019803469,18.07176134,133.06,133.03,0.71]
[1765019804377,3.03787909,133.05,133.03,0.71]
[1765019804582,18.48176134,133.06,133.03,0.71]
[1765019805282,18.07176134,133.06,133.03,0.71]
[1765019806485,8.24,133.05,133.03,0.71]
[1765019810778,15.75597653,133.05,133.03,0.71]
[1765019812074,15.75597653,133.05,133.01,10.55602236]
[1765019812075,19.20385562,133.05,133.01,3.03787909]
[1765019812277,106.44787909,133.04,133.01,0.68]
[1765019812862,106.03787909,133.04,133.01,0.68]
[1765019814087,113.96488575,133.04,133.01,0.68]
[1765019815479,3.03787909,133.02,133.0,0.2]
[1765019815684,3.03787909,133.02,133.0,0.88]
[1765019815859,3.03787909,133.01,133.0,0.2]
[1765019816062,10.5561108,133.01,133.0,0.2]
[1765019819295,7.51823171,133.01,133.0,0.2]
[1765019820089,10.5561108,133.01,133.0,0.2]
[1765019820799,10.9661108,133.01,133.0,0.2]
[1765019823499,22.7870836,133.01,133.0,0.2]
[1765019832494,7.51823171,133.01,133.0,0.92]
[1765019832673,15.77823171,133.01,133.0,0.92]
[1765019832874,7.51823171,133.01,133.0,0.92]
[1765019836602,7.51766651,133.02,133.0,0.92]
[1765019836816,7.51766651,133.02,133.01,0.72]
[1765019842781,110.51766651,133.02,133.01,0.72]
[1765019843007,13.15151636,133.07,133.01,0.72]
[1765019843008,121.78963138,133.06,133.01,0.72]
[1765019843195,11.27787909,133.05,133.01,0.72]
[1765019843396,18.79385052,133.05,133.01,0.72]
[1765019844213,15.75597143,133.05,133.01,0.72]
[1765019844580,18.79385052,133.05,133.01,0.72]
[1765019845906,10.55385052,133.05,133.01,0.72]
[1765019846205,8.24,133.04,133.01,0.72]
[1765019848712,111.24,133.04,133.01,0.72]
[1765019855418,8.24,133.03,133.01,0.72]
[1765019856916,11.68787909,133.03,133.0,8.4383674]
[1765019857411,11.68787909,133.03,133.0,0.92]
[1765019862124,3.03787909,133.02,133.0,0.92]
[1765019863227,3.03787909,133.02,133.0,0.2]
[1765019863402,3.03787909,133.02,133.01,0.71]
[1765019864003,11.27787909,133.03,133.01,0.71]
[1765019864518,12.98976028,133.03,133.01,0.71]
[1765019867334,8.24,133.03,133.01,0.71]
[1765019874832,103.0,133.04,133.01,21.76862428]
[1765019875134,103.0,133.04,133.02,4.74976028]
[1765019875323,103.0,133.04,133.02,5.41976028]
[1765019875524,103.0,133.04,133.03,0.67]
[1765019886248,103.0,133.04,133.01,21.05862428]
[1765019886426,103.0,133.04,133.01,0.67]
[1765019886427,107.74976028,133.04,133.01,0.67]
[1765019886626,115.98976028,133.04,133.01,0.67]
[1765019889345,115.98976028,133.04,133.01,8.18807847]
[1765019889552,103.0,133.04,133.01,8.18807847]
[1765019889724,103.0,133.04,133.02,0.7]
[1765019908874,103.0,133.04,133.02,5.44976028]
[1765019909048,103.0,133.04,133.03,0.7]
[1765019911572,103.0,133.04,133.02,0.7]
[1765019928348,103.0,133.04,133.01,7.51807847]
[1765019928552,8.65,133.03,133.0,0.92]
[1765019928747,11.68865279,133.03,133.01,16.308864]
[1765019928970,11.27865279,133.03,133.01,16.308864]
[1765019929187,11.68865279,133.03,133.01,16.308864]
[1765019933477,11.68865279,133.03,133.0,0.92]
[1765019935060,8.24,133.03,133.0,0.2]
[1765019935260,8.24,133.03,133.01,0.72]
[1765019938686,8.24,133.03,133.01,8.23818724]
[1765019939072,8.24,133.03,133.02,0.68]
[1765019940765,15.75818724,133.03,133.02,0.68]
[1765019940972,8.24,133.03,133.02,0.68]
[1765019941404,15.75818724,133.03,133.02,0.68]
[1765019942078,8.24,133.03,133.02,0.68]
[1765019943580,111.24,133.04,133.02,8.19762006]
[1765019943899,111.24,133.04,133.03,0.68]
[1765019947001,103.0,133.04,133.03,0.68]
[1765019948802,103.0,133.04,133.02,0.7]
[1765019949202,110.51762006,133.04,133.02,0.7]
[1765019955794,103.0,133.04,133.02,0.7]
[1765019962210,113.75673166,133.04,133.02,0.7]
[1765019973802,103.0,133.04,133.02,0.7]
[1765019974002,110.51807887,133.04,133.02,0.7]
[1765019976428,110.51807887,133.04,133.01,7.51807887]
[1765019976736,110.51807887,133.04,133.0,0.2]
[1765019976737,3.03865279,133.02,133.0,0.2]
[1765019977030,3.44865279,133.02,133.0,0.2]
[1765019977211,3.03865279,133.01,133.0,0.2]
[1765019977410,6.45922743,133.01,133.0,0.2]
[1765019979532,14.69922743,133.01,133.0,0.2]
[1765019980331,22.21745914,133.01,133.0,0.2]
[1765019980632,31.02740406,133.01,133.0,0.2]
[1765019988338,32.74164953,133.01,133.0,0.2]
[1765019998225,27.98875127,133.01,133.0,0.2]
[1765019998431,32.33164953,133.01,133.0,0.2]
[1765019998828,32.74164953,133.01,133.0,0.2]
[1765019999650,32.33164953,133.01,133.0,0.2]
[1765019999950,32.74164953,133.01,133.0,0.2]
[1765020002144,23.52170461,133.01,133.0,0.89]
[1765020002352,23.52170461,133.01,133.0,0.2]
[1765020006356,32.74164953,133.01,133.0,0.2]
[1765020007963,8.80994492,133.0,132.98,0.2]
[1765020008148,22.21284318,132.99,132.98,0.2]
[1765020008544,25.22455119,132.99,132.98,0.2]
[1765020010261,32.74391354,132.99,132.98,0.2]
[1765020012961,13.56284318,132.98,132.97,0.2]
[1765020013169,30.28170718,132.98,132.96,0.2]
[1765020013340,22.21284318,132.97,132.96,0.2]
[1765020013545,25.22523162,132.97,132.96,0.2]
[1765020013746,32.74572496,132.97,132.96,0.2]
[1765020014084,23.54578004,132.97,132.96,0.88]
[1765020017668,10.53288178,132.97,132.96,0.88]
[1765020017850,18.79288178,132.97,132.96,0.88]
[1765020018048,15.78049334,132.97,132.96,0.88]
[1765020018263,18.79220135,132.97,132.96,0.88]
[1765020019093,23.54509961,132.97,132.96,0.88]
[1765020028879,18.79220135,132.97,132.96,0.88]
[1765020029085,23.54509961,132.97,132.96,0.88]
[1765020032280,15.28509961,132.97,132.96,0.88]
[1765020032478,23.54509961,132.97,132.96,0.88]
[1765020038199,3.01170801,132.97,132.96,0.88]
[1765020038368,8.26,132.97,132.96,0.88]
[1765020045299,120.22520114,132.99,132.96,0.88]
[1765020045505,103.0,132.99,132.97,0.71]
[1765020050999,3.04100846,132.98,132.96,0.91]
[1765020051210,10.76245849,132.98,132.96,0.2]
[1765020051507,10.76245849,132.98,132.97,0.71]
[1765020051810,3.04100846,132.98,132.97,0.71]
[1765020052012,6.05248973,132.98,132.97,0.71]
[1765020053209,14.31248973,132.98,132.97,0.71]
[1765020053715,11.27148127,132.98,132.97,0.71]
[1765020053898,118.77953726,132.99,132.97,0.71]
[1765020054207,124.83202699,132.99,132.97,0.71]
[1765020056311,121.79101853,132.99,132.97,0.71]
[1765020056538,103.0,132.98,132.97,0.71]
[1765020076018,103.0,132.98,132.97,8.23049334]
[1765020078593,103.0,132.98,132.97,11.2715018]
[1765020079695,103.0,133.01,132.97,11.2715018]
[1765020079898,111.24,133.01,132.98,0.66]
[1765020081532,111.24,133.01,132.97,0.66]
[1765020081533,0.41,133.0,132.97,0.66]
[1765020083112,0.41,133.0,132.96,7.72092642]
[1765020083113,11.28100846,132.99,132.96,7.72092642]
[1765020083306,114.28100846,132.99,132.96,8.38092642]
[1765020083505,114.69100846,132.99,132.96,8.38092642]
[1765020084923,114.28100846,132.99,132.96,7.72092642]
[1765020085141,114.28100846,132.99,132.97,0.66]
[1765020089813,111.24,132.99,132.97,0.66]
[1765020090533,114.28100846,132.99,132.97,0.66]
[1765020093442,114.28100846,132.99,132.96,8.38092642]
[1765020093641,114.28100846,132.99,132.96,7.72092642]
[1765020093940,114.69100846,132.99,132.96,8.38092642]
[1765020094342,114.28100846,132.99,132.97,0.66]
[1765020094526,114.28100846,132.99,132.96,7.72092642]
[1765020094729,114.69100846,132.99,132.96,8.38092642]
[1765020095054,111.24,132.99,132.97,0.66]
[1765020097549,114.28100846,132.99,132.97,0.66]
[1765020101732,121.80042912,132.99,132.97,0.66]
[1765020101939,122.21042912,132.99,132.96,0.86]
[1765020103948,121.80042912,132.99,132.96,0.86]
[1765020104255,122.21042912,132.99,132.96,0.86]
[1765020104641,111.24,132.99,132.97,0.66]
[1765020107153,103.0,132.98,132.97,0.66]
[1765020109641,103.0,132.98,132.96,0.86]
[1765020110451,103.0,132.98,132.97,0.66]
[1765020112252,103.0,132.98,132.96,0.2]
[1765020112553,103.0,132.98,132.96,0.86]
[1765020113154,103.0,132.98,132.96,0.2]
[1765020113342,110.51993519,132.98,132.96,0.86]
[1765020113530,110.51993519,132.98,132.96,0.2]
[1765020113531,110.92993519,132.98,132.96,0.2]
[1765020115556,115.68228737,132.98,132.96,0.2]
[1765020116335,108.16235218,132.97,132.96,0.2]
[1765020116535,13.40235218,132.97,132.96,0.2]
[1765020116859,16.41451378,132.97,132.96,0.2]
[1765020117161,25.2244587,132.97,132.96,0.2]
[1765020117337,16.9844587,132.97,132.96,0.2]
[1765020117535,25.2244587,132.97,132.96,0.2]
[1765020118346,39.12740471,132.97,132.96,1e-08]
[1765020122956,30.88740471,132.97,132.96,1e-08]
[1765020123188,39.14740471,132.97,132.96,1e-08]
[1765020123466,32.76495204,132.97,132.96,1e-08]
[1765020135467,32.35495204,132.97,132.96,1e-08]
[1765020136670,32.76495204,132.97,132.96,1e-08]
[1765020140174,32.35495204,132.97,132.96,1e-08]
[1765020140361,32.76495204,132.97,132.96,1e-08]
[1765020141783,32.35495204,132.97,132.96,1e-08]
[1765020142080,32.76495204,132.97,132.96,1e-08]
[1765020143159,16.308864,132.95,132.94,0.2]
[1765020143355,16.308864,132.95,132.94,0.92]
[1765020143356,8.26,132.95,132.94,0.92]
[1765020143557,4.75235218,132.95,132.94,0.92]
[1765020143781,16.0249675,132.95,132.94,0.92]
[1765020144773,23.54659217,132.95,132.94,0.92]
[1765020156573,20.53397685,132.95,132.94,0.92]
[1765020165897,7.52162467,132.95,132.94,0.92]
[1765020166100,7.52114898,132.96,132.94,0.92]
[1765020166303,7.52114898,132.96,132.95,0.69]
[1765020166975,13.01235218,132.97,132.95,0.69]
[1765020166976,15.78056714,132.97,132.95,0.69]
[1765020169584,4.75235218,132.99,132.95,5.44235218]
[1765020169777,13.01235218,132.99,132.95,5.44235218]
[1765020169980,103.0,132.97,132.96,0.69]
[1765020189136,103.0,132.97,132.96,8.21105896]
[1765020195017,103.0,132.97,132.96,0.69]
[1765020231444,103.0,132.97,132.96,8.21105896]
[1765020241764,111.21105896,132.97,132.96,8.21105896]
[1765020243575,103.0,132.97,132.96,8.21105896]
[1765020244213,103.0,132.97,132.96,12.96322253]
[1765020245253,103.0,132.97,132.94,8.21105896]
[1765020245459,103.0,132.97,132.96,4.75216357]
[1765020247279,103.0,132.97,132.96,5.41216357]
[1765020247788,103.0,132.97,132.96,8.18105896]
[1765020247964,103.0,132.97,132.96,12.93322253]
[1765020250387,103.0,132.97,132.96,35.5159317]
[1765020251981,125.58270917,133.01,132.96,54.31857911]
[1765020252285,103.66,133.01,132.98,4.75216357]
[1765020252688,103.66,133.01,132.98,5.43216357]
[1765020253165,103.66,133.01,132.98,12.95178813]
[1765020253367,103.66,133.01,132.98,12.27178813]
[1765020253789,125.58100937,133.01,132.98,12.27178813]
[1765020254087,0.66,133.0,132.98,12.27178813]
[1765020255065,126.24100937,133.01,132.98,12.27178813]
[1765020255966,103.66,133.01,132.98,12.95178813]
[1765020257780,103.66,133.01,132.98,12.27178813]
[1765020258083,103.66,133.01,132.98,12.95178813]
[1765020258386,103.66,133.01,132.98,12.27178813]
[1765020258586,103.66,133.01,132.98,12.95178813]
[1765020259182,103.66,133.01,132.98,12.27178813]
[1765020259397,103.66,133.01,132.99,8.19917813]
[1765020259566,103.66,133.01,132.99,12.9513417]
[1765020264271,103.66,133.01,132.99,12.2713417]
[1765020265995,103.66,133.01,132.99,7.51917813]
[1765020266793,103.66,133.01,132.99,12.2713417]
[1765020267798,103.66,133.01,132.99,12.9513417]
[1765020269001,103.66,133.01,132.99,12.2713417]
[1765020269884,103.66,133.01,132.99,7.51917813]
[1765020272799,103.0,133.01,132.99,12.9513417]
[1765020273615,103.0,133.01,133.0,0.68]
[1765020273915,103.0,133.01,133.0,5.43216357]
[1765020274978,126.23761053,133.04,133.0,31.74795304]
[1765020275184,103.0,133.04,133.02,4.75216357]
[1765020275614,103.0,133.04,133.02,5.43216357]
[1765020276485,103.0,133.04,133.02,12.94954484]
[1765020276683,103.66,133.04,133.02,12.94954484]
[1765020279219,103.66,133.04,133.02,8.19738127]
[1765020279518,103.66,133.04,133.02,12.94954484]
[1765020279728,103.66,133.04,133.02,8.19738127]
[1765020280014,22.57421272,133.05,133.02,8.19738127]
[1765020280015,0.69,133.07,133.03,5.45216357]
[1765020280218,0.69,133.07,133.05,4.75216357]
[1765020281101,0.69,133.07,133.05,12.96810646]
[1765020285514,0.69,133.07,133.05,8.21594289]
[1765020285715,0.69,133.07,133.05,30.78506081]
[1765020286613,0.69,133.07,133.05,8.21594289]
[1765020286816,0.69,133.07,133.05,30.78506081]
[1765020291007,0.69,133.07,133.05,35.53722438]
[1765020292323,8.96,133.08,133.05,35.53722438]
[1765020292532,8.96,133.08,133.05,33.82194422]
[1765020292997,8.96,133.08,133.05,33.12194422]
[1765020293327,0.72,133.08,133.06,0.72]
[1765020294426,0.72,133.08,133.06,3.75688341]
[1765020294624,0.72,133.08,133.06,3.03688341]
[1765020295524,0.72,133.08,133.05,33.84194422]
[1765020296627,0.72,133.08,133.05,30.08506081]
[1765020296825,8.24,133.07,133.04,7.51640035]
[1765020297017,33.84769934,133.07,133.04,7.51640035]
[1765020297327,0.72,133.06,133.04,7.51640035]
[1765020297820,3.75688341,133.06,133.02,33.1249138]
[1765020298023,3.75688341,133.06,133.03,7.51709853]
[1765020298230,0.72,133.05,133.03,7.51709853]
[1765020300327,22.5725142,133.06,133.04,0.72]
[1765020300528,8.24,133.06,133.04,0.72]
[1765020301533,8.96,133.06,133.04,7.51642703]
[1765020303546,8.96,133.06,133.03,11.27386063]
[1765020303844,0.72,133.05,133.03,11.27386063]
[1765020304266,0.72,133.05,133.03,8.23697722]
[1765020304411,0.72,133.05,133.03,11.27386063]
[1765020304735,8.96,133.06,133.03,11.27386063]
[1765020306633,8.96,133.06,133.03,8.23697722]
[1765020307032,3.75688341,133.05,133.02,8.24]
[1765020307239,3.75688341,133.05,133.01,3.75688341]
[1765020307430,0.72,133.04,133.01,3.75688341]
[1765020307632,0.72,133.04,133.02,0.72]
[1765020307931,3.03688341,133.03,132.98,22.5725142]
[1765020308122,3.03688341,133.01,132.97,0.72]
[1765020308306,8.24,133.02,132.97,0.72]
[1765020308307,3.03688341,133.0,132.97,0.72]
[1765020308736,3.75688341,133.0,132.97,0.72]
[1765020309233,12.69688341,133.01,132.97,8.24035512]
[1765020309736,12.69688341,133.01,132.98,0.72]
[1765020310033,3.73688341,133.01,132.98,0.72]
[1765020311818,11.25723853,133.01,132.98,0.72]
[1765020316438,10.55723853,133.01,132.98,0.72]
[1765020316640,7.52035512,133.01,132.98,0.72]
[1765020316846,0.7,133.01,132.98,0.72]
[1765020317724,8.24,133.04,133.0,3.03688341]
[1765020317947,8.94,133.04,133.0,3.03688341]
[1765020318123,8.94,133.04,133.01,0.72]
[1765020318647,15.75666601,133.04,133.01,3.75688341]
[1765020318844,0.7,133.03,133.01,3.75688341]
[1765020321148,0.7,133.03,133.01,0.72]
[1765020323652,15.75666601,133.04,133.01,0.72]
[1765020323844,16.45666601,133.04,133.01,0.72]
[1765020324350,0.7,133.03,133.01,0.72]
[1765020329157,119.45666601,133.04,133.01,0.72]
[1765020329336,111.94,133.04,133.01,3.75688341]
[1765020329930,111.94,133.04,133.02,0.72]
[1765020330652,30.7914281,133.06,133.02,3.75688341]
[1765020330835,30.7914281,133.06,133.03,3.03688341]
[1765020331148,8.2155166,133.06,133.03,3.75688341]
[1765020331851,0.7,133.06,133.04,0.72]
[1765020335352,119.45494807,133.07,133.04,3.75688341]
[1765020335950,119.45494807,133.07,133.05,0.72]
[1765020336253,119.45494807,133.07,133.04,3.03688341]
[1765020336454,119.45494807,133.07,133.04,3.75688341]
[1765020336954,103.0,133.07,133.05,3.75688341]
[1765020337339,103.0,133.07,133.06,0.72]
[1765020337544,7.61420099,133.09,133.06,0.72]
[1765020337545,0.1,133.09,133.06,0.72]
[1765020337939,11.35095663,133.09,133.06,0.72]
[1765020338347,0.7,133.08,133.05,3.75688341]
[1765020338743,0.7,133.08,133.05,0.72]
[1765020339762,0.7,133.08,133.04,18.79338302]
[1765020339962,0.7,133.08,133.04,19.47338302]
[1765020340159,11.25119557,133.08,133.04,16.43649961]
[1765020340545,0.68,133.07,133.04,16.43649961]
[1765020341450,8.19485192,133.07,133.04,8.92]
[1765020343043,0.68,133.07,133.05,0.68]
[1765020343242,7.51435159,133.08,133.05,0.68]
[1765020343470,0.68,133.07,133.05,0.68]
[1765020344765,7.51435159,133.08,133.05,0.68]
[1765020344969,8.19435159,133.08,133.05,0.68]
[1765020345166,0.68,133.07,133.05,0.68]
[1765020345973,7.51435159,133.08,133.05,0.68]
[1765020346157,8.19435159,133.08,133.05,0.68]
[1765020346569,0.68,133.07,133.05,0.68]
[1765020349311,103.0,133.08,133.05,0.68]
[1765020349568,103.0,133.08,133.05,3.71688341]
[1765020349775,103.0,133.08,133.06,0.68]
[1765020358873,103.69,133.08,133.06,0.68]
[1765020360269,108.43476408,133.08,133.05,8.21575372]
[1765020360465,115.25925464,133.08,133.04,7.51647189]
[1765020360677,13.67476408,133.07,133.03,8.21693883]
[1765020360884,13.67476408,133.07,133.03,7.51693883]
[1765020361187,0.69,133.06,133.03,8.21693883]
[1765020363483,5.43476408,133.06,133.03,8.21693883]
[1765020363664,12.95028951,133.06,133.01,24.52660906]
[1765020363864,5.43476408,133.05,133.02,0.7]
[1765020364378,0.69,133.05,133.02,0.7]
[1765020364760,5.43476408,133.04,133.0,8.21869758]
[1765020365159,0.69,133.03,133.0,8.21869758]
[1765020367385,0.69,133.03,133.0,7.51869758]
[1765020367689,0.69,133.03,133.01,0.7]
[1765020371182,0.69,133.03,133.0,12.26346166]
[1765020371501,0.69,133.03,133.0,5.43476408]
[1765020372595,0.69,133.03,133.0,0.69]
[1765020372891,8.20715473,133.03,133.0,0.69]
[1765020373988,103.0,133.04,133.0,12.95329456]
[1765020374290,103.69,133.04,133.01,0.69]
[1765020376078,103.0,133.04,133.01,12.95277078]
[1765020376597,103.0,133.04,133.02,0.69]
[1765020378274,16.44544522,133.06,133.02,8.20763149]
[1765020378676,16.44544522,133.06,133.03,0.69]
[1765020378895,115.25956796,133.08,133.03,0.69]
[1765020379089,110.51480388,133.08,133.03,5.43476408]
[1765020379395,111.20480388,133.08,133.03,5.43476408]
[1765020379593,111.20480388,133.08,133.04,5.43476408]
[1765020379989,110.51480388,133.08,133.05,0.69]
[1765020380195,0.69,133.07,133.05,0.69]
[1765020380491,111.20480388,133.08,133.05,0.69]
[1765020380692,0.69,133.07,133.05,0.69]
[1765020387095,103.0,133.08,133.06,0.69]
[1765020387494,103.0,133.08,133.04,12.95114674]
[1765020387698,0.69,133.07,133.04,0.69]
[1765020389094,8.20499461,133.07,133.04,0.69]
[1765020389296,0.69,133.06,133.04,0.69]
[1765020389597,0.69,133.06,133.04,5.43476408]
[1765020389798,8.20499461,133.07,133.04,5.43476408]
[1765020389997,111.24,133.08,133.05,5.43476408]
[1765020390383,111.93,133.08,133.06,0.69]
[1765020390585,103.0,133.08,133.06,0.69]
[1765020391185,103.69,133.08,133.06,0.69]
[1765020394351,103.0,133.08,133.06,0.69]
[1765020395806,103.0,133.08,133.07,4.74476408]
[1765020396312,0.1,133.09,133.07,5.43476408]
[1765020399898,0.1,133.09,133.08,0.69]
[1765020401012,0.1,133.09,133.07,0.69]
[1765020404345,0.1,133.09,133.07,12.94950867]
[1765020404920,0.1,133.09,133.08,0.69]
[1765020406412,0.1,133.09,133.07,12.25950867]
[1765020406732,0.1,133.09,133.07,12.94950867]
[1765020407446,0.81,133.09,133.07,8.20474459]
[1765020408316,0.1,133.09,133.07,8.20474459]
[1765020410037,0.1,133.09,133.08,5.43476408]
[1765020412341,0.1,133.09,133.08,12.9490412]
[1765020413263,0.1,133.09,133.08,29.2579052]
[1765020414225,0.1,133.09,133.08,38.06785012]
[1765020416332,0.1,133.09,133.08,36.3574763]